bitfinex/quotes_SOLUSD_20250710
["timestamp","ask_amount","ask_price","bid_price","bid_amount"]
[1752186984850,1.42331216,163.76,163.71,0.03]
[1752186985050,1.42331216,163.76,163.72,5.36528524]
[1752186985649,0.66,163.75,163.72,5.36528524]
[1752186986343,0.66,163.74,163.71,0.03]
[1752186986550,0.66,163.74,163.71,5.39528524]
[1752186987050,0.66,163.74,163.71,0.03]
[1752186987252,0.66,163.74,163.71,5.39528524]
[1752186987452,0.66,163.74,163.71,0.03]
[1752186987655,6.10720511,163.75,163.72,5.36528524]
[1752186988042,6.76720511,163.75,163.72,5.36528524]
[1752186988652,6.76720511,163.75,163.71,63.38639339]
[1752186988833,6.76720511,163.75,163.71,58.02110815]
[1752186989039,0.66,163.74,163.71,62.70639339]
[1752186989259,6.82651195,163.76,163.73,5.36528524]
[1752186989468,6.82651195,163.76,163.71,57.34110815]
[1752186989469,6.78864401,163.75,163.71,57.34110815]
[1752186989759,6.02528524,163.74,163.71,57.34110815]
[1752186989931,0.66,163.73,163.71,57.34110815]
[1752186991161,6.10798924,163.72,163.71,57.34110815]
[1752186992039,6.10757944,163.74,163.71,62.70639339]
[1752186993850,6.76757944,163.74,163.71,62.70639339]
[1752186994551,0.66,163.73,163.71,57.34110815]
[1752186994746,0.66,163.72,163.71,57.34110815]
[1752186995146,6.76757944,163.74,163.71,57.34110815]
[1752186995368,6.76757944,163.74,163.71,62.70639339]
[1752186996343,6.76757944,163.74,163.71,57.34110815]
[1752186997472,6.10757944,163.74,163.71,57.34110815]
[1752186997675,0.66,163.73,163.71,57.34110815]
[1752186997976,0.66,163.72,163.71,57.34110815]
[1752186998585,6.76798924,163.72,163.71,57.34110815]
[1752186999972,6.76798924,163.72,163.71,0.03]
[1752187001458,6.10771219,163.73,163.71,5.39528524]
[1752187001780,6.10771219,163.73,163.71,0.03]
[1752187001952,0.66,163.72,163.71,0.03]
[1752187002758,6.76798924,163.72,163.71,0.03]
[1752187003072,6.10724319,163.74,163.71,5.39528524]
[1752187003449,6.10724319,163.74,163.71,0.03]
[1752187003753,0.66,163.73,163.71,0.03]
[1752187004882,6.10724319,163.74,163.71,5.39528524]
[1752187005180,6.76724319,163.74,163.71,0.03]
[1752187005392,6.76724319,163.74,163.71,5.39528524]
[1752187005680,6.10724319,163.74,163.71,6.07528524]
[1752187006457,6.76724319,163.74,163.71,5.39528524]
[1752187007568,6.76724319,163.74,163.72,5.36528524]
[1752187008281,1.48331216,163.76,163.73,5.36528524]
[1752187008472,0.72,163.76,163.73,5.36528524]
[1752187008685,0.66,163.75,163.73,5.36528524]
[1752187009070,6.16660503,163.76,163.73,5.36528524]
[1752187009270,6.82660503,163.76,163.73,5.36528524]
[1752187010387,6.82660503,163.76,163.71,33.07]
[1752187010570,6.82660503,163.76,163.73,5.36528524]
[1752187010968,6.16659609,163.76,163.71,38.49822659]
[1752187011179,6.16659609,163.76,163.74,5.36528524]
[1752187011377,0.06,163.76,163.74,5.36528524]
[1752187011584,0.06,163.76,163.75,6.04528524]
[1752187011882,0.06,163.76,163.75,63.49855496]
[1752187012060,0.06,163.76,163.75,95.00600177]
[1752187012593,0.06,163.78,163.77,26.0]
[1752187012914,0.06,163.78,163.77,64.00960838]
[1752187013188,0.06,163.78,163.77,64.68960838]
[1752187014688,0.06,163.78,163.77,70.79573282]
[1752187014985,0.06,163.78,163.77,65.43044758]
[1752187015181,0.06,163.78,163.77,70.79573282]
[1752187016583,0.06,163.78,163.77,145.03368651]
[1752187016784,0.06,163.79,163.77,145.03368651]
[1752187017093,0.06,163.79,163.78,23.25645392]
[1752187017259,0.06,163.79,163.78,80.56756207]
[1752187018871,0.06,163.79,163.78,86.67331368]
[1752187019468,0.06,163.81,163.8,43.21116868]
[1752187019672,0.06,163.81,163.8,138.22756207]
[1752187019874,0.06,163.81,163.8,138.90756207]
[1752187020592,0.06,163.81,163.8,121.01639339]
[1752187021084,0.06,163.81,163.8,88.67639339]
[1752187021402,0.76,163.81,163.76,57.99110815]
[1752187021610,0.76,163.81,163.77,37.68528524]
[1752187021778,5.36528524,163.8,163.72,65.75321624]
[1752187021976,7.96437917,163.81,163.79,5.36528524]
[1752187021977,0.06,163.81,163.79,5.36528524]
[1752187022188,0.06,163.81,163.8,5.36528524]
[1752187022700,0.76,163.81,163.8,5.36528524]
[1752187022995,0.06,163.81,163.8,5.36528524]
[1752187023404,0.06,163.81,163.8,6.04528524]
[1752187023570,0.06,163.81,163.8,6.32960838]
[1752187025296,0.76,163.81,163.79,26.0]
[1752187025502,0.76,163.81,163.78,37.68528524]
[1752187025674,0.76,163.81,163.78,5.36528524]
[1752187025875,0.7,163.8,163.78,5.36528524]
[1752187026691,0.7,163.8,163.78,62.67639339]
[1752187027213,6.80521426,163.8,163.78,62.67639339]
[1752187028095,6.80521426,163.8,163.78,94.99639339]
[1752187028273,0.7,163.79,163.78,89.63110815]
[1752187028479,0.7,163.79,163.78,57.31110815]
[1752187029496,6.80537883,163.79,163.78,57.31110815]
[1752187030202,6.80537883,163.79,163.76,32.32]
[1752187030502,0.7,163.78,163.75,62.67639339]
[1752187030688,0.7,163.78,163.76,32.3]
[1752187030885,0.7,163.77,163.76,32.3]
[1752187031088,0.7,163.77,163.75,94.97639339]
[1752187031289,0.7,163.76,163.75,57.31110815]
[1752187031675,0.7,163.76,163.73,115.61110815]
[1752187031676,6.80649731,163.76,163.73,115.61110815]
[1752187031875,0.7,163.75,163.73,57.31110815]
[1752187032084,0.7,163.75,163.73,94.97639339]
[1752187033298,0.7,163.75,163.73,89.61110815]
[1752187033481,0.7,163.75,163.73,94.97639339]
[1752187033677,6.10701284,163.75,163.73,94.97639339]
[1752187033886,6.10583392,163.78,163.74,5.36528524]
[1752187034091,6.80583392,163.78,163.76,5.36528524]
[1752187034486,6.10543178,163.79,163.77,5.36528524]
[1752187034685,0.06,163.81,163.78,5.36528524]
[1752187034910,0.06,163.81,163.79,32.3]
[1752187034911,0.76,163.81,163.79,32.3]
[1752187035210,0.06,163.81,163.8,37.66528524]
[1752187035594,0.06,163.81,163.8,94.97639339]
[1752187037422,0.06,163.81,163.8,95.65639339]
[1752187039487,0.06,163.81,163.8,102.04572263]
[1752187040204,0.06,163.81,163.8,61.66146002]
[1752187040409,0.2,163.83,163.82,43.21116868]
[1752187040610,0.2,163.83,163.82,80.87645392]
[1752187040794,0.2,163.83,163.82,81.55645392]
[1752187041989,0.2,163.83,163.82,87.66071469]
[1752187043397,0.2,163.83,163.82,81.55645392]
[1752187047505,0.2,163.83,163.82,87.66071469]
[1752187048616,0.2,163.83,163.82,81.55645392]
[1752187048817,0.2,163.83,163.82,75.51116868]
[1752187048998,0.2,163.83,163.82,81.55645392]
[1752187049503,0.2,163.83,163.82,64.62960838]
[1752187050298,0.2,163.83,163.82,144.97182284]
[1752187050510,8.43153649,163.89,163.84,0.28432314]
[1752187050511,7.76153649,163.89,163.84,0.28432314]
[1752187050715,0.67,163.88,163.85,32.26]
[1752187050903,0.67,163.88,163.86,5.36528524]
[1752187051296,0.67,163.88,163.86,37.62528524]
[1752187051621,0.67,163.87,163.86,37.62528524]
[1752187052502,6.77239824,163.87,163.86,37.62528524]
[1752187052904,8.43176465,163.89,163.86,37.62528524]
[1752187053097,0.67,163.88,163.87,5.36528524]
[1752187053513,7.76176465,163.89,163.87,5.36528524]
[1752187053710,8.43176465,163.89,163.88,5.36528524]
[1752187054100,2.3298,163.89,163.88,37.62528524]
[1752187054421,8.43145354,163.89,163.88,32.26]
[1752187054617,2.3298,163.89,163.88,32.26]
[1752187054809,2.3298,163.89,163.88,37.62528524]
[1752187055918,2.3298,163.89,163.88,32.26]
[1752187056123,2.3298,163.89,163.88,37.62528524]
[1752187056820,2.3298,163.89,163.88,32.26]
[1752187059127,6.83165354,163.89,163.88,89.37110815]
[1752187059921,0.73,163.89,163.88,89.37110815]
[1752187060300,0.73,163.89,163.88,94.73639339]
[1752187060700,0.06,163.89,163.88,94.73639339]
[1752187060901,0.06,163.89,163.88,89.37110815]
[1752187061099,0.73,163.89,163.88,94.73639339]
[1752187061322,0.73,163.89,163.88,89.37110815]
[1752187062706,0.06,163.89,163.88,94.73639339]
[1752187062914,6.83165354,163.89,163.88,94.73639339]
[1752187063104,6.16165354,163.89,163.88,94.73639339]
[1752187063530,6.83165354,163.89,163.88,94.73639339]
[1752187063928,6.83165354,163.89,163.88,89.37110815]
[1752187064933,6.83165354,163.89,163.88,57.11110815]
[1752187065120,6.83165354,163.89,163.87,32.24]
[1752187065121,12.19693878,163.89,163.87,32.24]
[1752187065331,0.67,163.88,163.86,32.24]
[1752187065628,0.67,163.87,163.86,32.24]
[1752187065842,6.83165354,163.89,163.86,32.24]
[1752187066009,0.67,163.88,163.86,32.24]
[1752187066211,0.67,163.88,163.86,37.60528524]
[1752187066838,0.67,163.87,163.86,32.24]
[1752187067040,6.77239824,163.87,163.86,32.24]
[1752187067245,0.67,163.87,163.86,37.60528524]
[1752187067544,6.10214428,163.88,163.86,37.60528524]
[1752187067933,6.77214428,163.88,163.86,32.24]
[1752187068235,6.77214428,163.88,163.86,37.60528524]
[1752187068636,6.77214428,163.88,163.86,32.24]
[1752187068814,6.77214428,163.88,163.86,37.60528524]
[1752187069215,6.16169491,163.89,163.86,32.24]
[1752187069416,6.83169491,163.89,163.87,5.36528524]
[1752187069611,6.16169491,163.89,163.88,32.22]
[1752187070028,6.83169491,163.89,163.88,32.22]
[1752187071218,6.83169491,163.89,163.86,57.11110815]
[1752187071422,0.67,163.88,163.87,32.22]
[1752187072919,6.16169491,163.89,163.87,32.22]
[1752187073634,6.83169491,163.89,163.87,32.22]
[1752187074219,0.67,163.88,163.87,32.22]
[1752187075152,6.77202587,163.88,163.87,32.22]
[1752187075443,6.10202587,163.88,163.87,32.22]
[1752187075622,6.77202587,163.88,163.87,32.22]
[1752187076531,0.67,163.88,163.87,32.22]
[1752187076718,6.83178493,163.89,163.87,32.22]
[1752187076921,6.83178493,163.89,163.87,89.33110815]
[1752187077436,6.16178493,163.89,163.87,89.33110815]
[1752187077945,0.06,163.89,163.87,89.33110815]
[1752187078130,0.06,163.89,163.88,5.36528524]
[1752187078462,0.06,163.89,163.88,6.04528524]
[1752187079427,0.06,163.89,163.88,63.44071653]
[1752187079944,0.06,163.89,163.88,112.46958794]
[1752187080461,0.06,163.89,163.88,101.00227683]
[1752187080640,0.06,163.89,163.88,106.36756207]
[1752187081140,0.2,163.9,163.89,17.21116868]
[1752187081343,0.2,163.9,163.89,55.45645392]
[1752187082933,0.2,163.93,163.89,111.68756207]
[1752187083134,0.2,163.93,163.92,60.042276]
[1752187083444,0.2,163.93,163.92,92.242276]
[1752187083635,0.2,163.93,163.92,92.922276]
[1752187085228,0.2,163.93,163.92,239.222276]
[1752187085539,0.2,163.95,163.93,17.21116868]
[1752187085742,0.2,163.96,163.95,0.42648471]
[1752187085928,0.2,163.96,163.94,8.12437933]
[1752187086136,0.2,163.96,163.95,63.56528524]
[1752187086550,0.2,163.96,163.95,144.46698262]
[1752187089639,0.06,164.02,163.95,144.46698262]
[1752187089640,0.06,164.02,163.96,0.42648471]
[1752187089841,0.06,164.02,164.01,5.36528524]
[1752187090154,0.06,164.02,164.01,37.54528524]
[1752187091244,0.06,164.02,164.01,43.64247443]
[1752187091938,0.06,164.02,164.01,44.60679757]
[1752187092138,0.06,164.02,164.01,44.74895914]
[1752187092463,0.2,164.06,164.03,0.28432314]
[1752187092750,0.87,164.06,164.04,32.18]
[1752187093256,0.67,164.05,164.04,32.18]
[1752187093756,0.2,164.06,164.04,32.18]
[1752187093940,0.2,164.06,164.04,37.54528524]
[1752187094261,0.2,164.06,164.05,5.36528524]
[1752187095456,0.2,164.06,164.05,62.21639339]
[1752187096451,0.2,164.06,164.05,86.20326459]
[1752187098041,0.2,164.06,164.05,0.42648471]
[1752187098241,0.2,164.06,164.05,5.79176995]
[1752187099148,0.2,164.06,164.05,11.88747247]
[1752187099357,0.2,164.06,164.05,12.56747247]
[1752187100162,0.2,164.06,164.05,29.35215644]
[1752187100350,0.2,164.06,164.05,23.9868712]
[1752187100661,0.2,164.06,164.05,29.35215644]
[1752187102738,0.2,164.06,164.05,5.36528524]
[1752187103157,0.2,164.06,164.05,31.50744681]
[1752187103466,0.2,164.06,164.05,31.64960838]
[1752187103672,0.2,164.06,164.05,94.59641905]
[1752187104166,0.2,164.06,164.05,83.13543129]
[1752187104365,0.2,164.06,164.05,88.50071653]
[1752187105057,0.2,164.06,164.05,94.59641905]
[1752187105762,0.2,164.08,164.06,74.06227683]
[1752187105963,0.2,164.13,164.12,0.14216157]
[1752187106172,0.2,164.13,164.12,94.64071653]
[1752187107041,0.92,164.13,164.12,94.35639339]
[1752187108070,0.2,164.13,164.12,94.64071653]
[1752187108273,0.2,164.13,164.12,37.78960838]
[1752187108468,0.2,164.13,164.12,44.55271098]
[1752187108654,0.2,164.13,164.12,150.47955652]
[1752187108976,0.92,164.13,164.12,126.48528524]
[1752187109160,0.92,164.13,164.12,37.48528524]
[1752187109361,0.2,164.13,164.12,32.12]
[1752187109556,0.2,164.13,164.12,37.48528524]
[1752187109874,0.92,164.13,164.12,37.48528524]
[1752187110253,0.92,164.13,164.12,37.76960838]
[1752187110254,0.2,164.13,164.12,37.76960838]
[1752187110450,0.2,164.13,164.12,37.91176995]
[1752187110666,0.2,164.13,164.12,32.40432314]
[1752187110971,0.2,164.13,164.12,37.76960838]
[1752187111268,7.01295843,164.13,164.06,101.93651314]
[1752187111459,8.42112306,164.12,164.07,5.36528524]
[1752187111664,6.3514,164.11,164.08,32.12]
[1752187111970,6.81384521,164.1,164.08,32.12]
[1752187112153,0.72,164.09,164.08,32.12]
[1752187112978,0.72,164.1,164.08,37.48528524]
[1752187113150,0.72,164.1,164.09,5.36528524]
[1752187113555,2.2942,164.12,164.09,5.36528524]
[1752187113850,2.2942,164.12,164.11,5.36528524]
[1752187114284,2.2942,164.12,164.11,94.36528524]
[1752187114486,0.72,164.12,164.11,94.36528524]
[1752187115001,0.2,164.13,164.11,5.36528524]
[1752187115181,0.2,164.13,164.12,63.48528524]
[1752187116290,0.2,164.13,164.12,70.00487255]
[1752187116484,0.2,164.13,164.12,65.30958731]
[1752187116682,0.2,164.13,164.12,63.91176995]
[1752187117279,0.2,164.13,164.12,70.00487255]
[1752187118801,0.2,164.13,164.12,63.91176995]
[1752187119197,0.2,164.13,164.12,70.00487255]
[1752187121093,0.92,164.13,164.11,89.0]
[1752187121394,0.2,164.13,164.12,37.46528524]
[1752187121982,0.92,164.13,164.12,37.46528524]
[1752187122510,0.2,164.13,164.12,37.46528524]
[1752187122704,0.92,164.13,164.12,37.46528524]
[1752187122905,0.2,164.13,164.12,37.74960838]
[1752187124314,0.2,164.13,164.12,150.43955652]
[1752187128294,0.06,164.15,164.14,26.42648471]
[1752187128496,0.06,164.15,164.14,63.89176995]
[1752187128691,0.78,164.15,164.14,152.46528524]
[1752187128902,0.06,164.15,164.14,152.46528524]
[1752187129202,0.06,164.15,164.14,147.1]
[1752187129406,0.06,164.15,164.14,152.46528524]
[1752187129607,0.06,164.15,164.14,152.74960838]
[1752187130586,0.06,164.15,164.14,158.84196856]
[1752187131206,0.06,164.15,164.14,158.98413013]
[1752187131383,0.06,164.15,164.14,176.4388141]
[1752187131708,0.06,164.15,164.14,181.80409934]
[1752187132013,0.2,164.18,164.15,0.42648471]
[1752187132232,0.2,164.18,164.17,31.79176995]
[1752187132385,0.9,164.18,164.17,63.44528524]
[1752187132581,0.9,164.18,164.17,58.08]
[1752187132804,0.9,164.18,164.17,37.44528524]
[1752187133052,6.99092961,164.18,164.15,94.36528524]
[1752187133309,0.7,164.17,164.16,32.08]
[1752187133897,8.0594,164.16,164.1,89.0]
[1752187134107,0.7,164.15,164.12,5.36528524]
[1752187134310,0.7,164.15,164.13,32.08]
[1752187134803,0.7,164.15,164.12,5.36528524]
[1752187135008,0.7,164.14,164.13,37.44528524]
[1752187136399,6.79236018,164.14,164.13,32.08]
[1752187136600,6.79236018,164.14,164.11,31.36528524]
[1752187136785,0.7,164.13,164.12,32.08]
[1752187137397,0.7,164.13,164.12,121.08]
[1752187137792,0.7,164.13,164.12,32.08]
[1752187138309,12.15801661,164.13,164.08,0.03]
[1752187138511,0.7,164.12,164.08,0.03]
[1752187138708,9.90101683,164.11,164.09,32.08]
[1752187139013,5.23573159,164.1,164.08,0.03]
[1752187139225,4.53573159,164.09,164.08,0.03]
[1752187139531,4.53573159,164.09,164.08,32.11]
[1752187139692,5.23573159,164.09,164.08,32.11]
[1752187140502,5.23573159,164.09,164.08,0.03]
[1752187143313,6.06528524,164.04,164.0,32.08]
[1752187143525,0.7,164.03,164.01,32.08]
[1752187143710,0.7,164.02,164.01,32.08]
[1752187144098,5.23992328,164.02,164.01,32.08]
[1752187144429,4.53992328,164.02,164.01,32.08]
[1752187144601,6.79614446,164.04,164.01,32.08]
[1752187144801,0.7,164.03,164.01,32.08]
[1752187146031,0.7,164.02,163.96,89.0]
[1752187146203,0.7,164.02,163.97,32.08]
[1752187146204,5.36528524,164.0,163.97,32.08]
[1752187146403,0.7,163.99,163.97,32.08]
[1752187146721,0.7,163.99,163.98,32.08]
[1752187146909,5.23454327,163.99,163.96,31.36528524]
[1752187147104,0.7,163.99,163.97,32.08]
[1752187147808,0.7,163.99,163.97,37.44528524]
[1752187148046,0.7,163.99,163.97,5.36528524]
[1752187148208,0.7,163.99,163.98,32.08]
[1752187148617,0.7,163.99,163.96,115.0]
[1752187148618,6.7979328,163.99,163.96,89.0]
[1752187148810,5.36528524,163.97,163.95,0.1]
[1752187149005,4.53088735,163.96,163.95,32.18]
[1752187149207,5.23088735,163.96,163.95,32.18]
[1752187149508,4.53088735,163.96,163.95,37.54528524]
[1752187149712,6.797627,164.0,163.95,37.54528524]
[1752187150021,4.52677277,163.99,163.97,5.36528524]
[1752187150223,0.7,163.99,163.98,32.08]
[1752187150401,4.52414649,163.99,163.98,37.44528524]
[1752187150606,4.52414649,163.99,163.98,32.08]
[1752187150806,4.52414649,163.99,163.98,37.44528524]
[1752187151017,7.8109,164.02,163.98,37.44528524]
[1752187151333,4.52383054,164.01,163.98,32.08]
[1752187151622,8.5109,164.02,163.98,32.08]
[1752187151929,0.7,164.04,163.98,38.85806631]
[1752187152101,4.52163478,164.03,163.98,38.85806631]
[1752187152301,4.52163478,164.02,163.98,38.85806631]
[1752187152502,0.7,164.02,163.98,32.08]
[1752187152717,4.52036455,164.01,163.98,32.08]
[1752187152913,0.7,164.04,164.0,5.36528524]
[1752187153113,4.52028483,164.03,164.01,32.08]
[1752187153324,8.6904,164.06,164.02,0.28432314]
[1752187153508,4.51903051,164.05,164.03,32.08]
[1752187153709,4.51903051,164.04,164.03,32.08]
[1752187153916,4.51903051,164.04,164.03,121.08]
[1752187154316,4.51903051,164.04,164.03,126.44528524]
[1752187154913,8.6904,164.06,164.03,126.44528524]
[1752187155109,4.51795884,164.05,164.04,5.36528524]
[1752187155708,14.08574923,164.06,164.04,5.36528524]
[1752187155931,0.7,164.05,164.03,32.06]
[1752187156121,1.46196281,164.05,164.03,32.06]
[1752187156328,6.09607412,164.04,164.02,32.06]
[1752187156503,0.7,164.03,164.02,32.06]
[1752187156711,0.7,164.05,164.02,37.42528524]
[1752187157206,0.7,164.04,164.02,5.36528524]
[1752187157420,0.7,164.03,164.02,5.36528524]
[1752187157617,0.7,164.03,164.02,37.42528524]
[1752187157812,0.7,164.03,164.02,32.06]
[1752187158536,0.7,164.03,164.01,5.36528524]
[1752187158734,0.7,164.02,164.0,32.06]
[1752187158933,11.46163201,164.04,163.99,120.36528524]
[1752187158934,0.7,164.01,163.99,120.36528524]
[1752187159146,0.7,164.05,164.0,37.42528524]
[1752187159345,6.79573709,164.05,164.03,5.36528524]
[1752187159643,0.7,164.04,164.03,32.06]
[1752187160340,6.09573709,164.05,164.03,37.42528524]
[1752187160528,6.79573709,164.05,164.03,37.42528524]
[1752187160728,0.7,164.04,164.03,32.06]
[1752187161515,6.06528524,164.04,163.99,115.0]
[1752187161736,0.7,164.03,164.0,37.42528524]
[1752187162144,0.7,164.03,164.0,5.36528524]
[1752187162334,0.7,164.03,164.01,32.06]
[1752187162635,0.7,164.03,164.01,37.42528524]
[1752187162636,6.79663142,164.03,164.01,37.42528524]
[1752187162837,0.7,164.02,164.01,121.06]
[1752187164243,0.7,164.02,164.01,126.42528524]
[1752187164542,0.7,164.02,164.01,121.06]
[1752187164725,12.1621027,164.02,163.97,89.0]
[1752187164922,5.36528524,163.98,163.97,89.0]
[1752187165122,6.06528524,163.98,163.95,121.16]
[1752187165342,5.36528524,163.96,163.95,89.1]
[1752187165528,6.06528524,163.96,163.95,0.1]
[1752187166837,15.72744792,163.96,163.95,0.1]
[1752187167031,32.51213189,163.96,163.95,1e-08]
[1752187167238,37.92958762,163.96,163.95,1e-08]
[1752187167610,21.00274208,163.96,163.95,1e-08]
[1752187168337,20.24036102,163.96,163.95,1e-08]
[1752187168534,11.31196164,163.96,163.95,1e-08]
[1752187168743,21.00274208,163.96,163.95,1e-08]
[1752187169215,37.92958762,163.96,163.95,1e-08]
[1752187169422,63.92958762,163.96,163.95,1e-08]
[1752187169634,65.47438762,163.96,163.95,1e-08]
[1752187171340,65.33222605,163.96,163.95,1e-08]
[1752187171630,22.54754208,163.96,163.95,1e-08]
[1752187172039,6.7577131,163.96,163.95,1e-08]
[1752187172234,4.5129131,163.96,163.95,1e-08]
[1752187173518,4.5129131,163.96,163.95,8.92839939]
[1752187173727,4.50408086,163.96,163.95,8.92839939]
[1752187174020,0.7,163.98,163.95,8.92839939]
[1752187174545,1.4622416,163.99,163.97,8.92839938]
[1752187174725,0.7,163.99,163.97,8.92839938]
[1752187175239,0.7,163.99,163.96,32.06]
[1752187175437,0.7,163.99,163.97,8.92839938]
[1752187175835,0.7,163.99,163.96,40.98839938]
[1752187176344,0.7,164.01,163.97,8.92839938]
[1752187176516,7.55949623,164.01,163.97,8.92839938]
[1752187176721,0.7,164.0,163.97,8.92839938]
[1752187177947,6.79756926,164.0,163.97,8.92839938]
[1752187178460,0.7,164.0,163.98,8.92839938]
[1752187179328,0.7,163.99,163.96,40.98839938]
[1752187181948,6.79795441,163.99,163.96,32.06]
[1752187182155,0.7,163.98,163.96,40.98839938]
[1752187182338,0.7,163.98,163.96,8.92839938]
[1752187182536,0.7,163.97,163.95,1e-08]
[1752187182853,9.69078044,163.96,163.95,1e-08]
[1752187183348,0.7,163.96,163.95,1e-08]
[1752187183947,6.79904854,163.96,163.95,1e-08]
[1752187189760,2.31953457,163.97,163.95,1e-08]
[1752187189956,6.79799513,163.99,163.95,5.35444662]
[1752187190146,0.7,163.98,163.95,5.35444662]
[1752187191138,0.06,163.96,163.95,5.35444662]
[1752187197245,0.74,163.96,163.95,1e-08]
[1752187198967,1.50238106,163.96,163.95,1e-08]
[1752187199164,0.74,163.96,163.95,1e-08]
[1752187199365,0.74,163.96,163.95,5.35444662]
[1752187199567,0.74,163.96,163.95,1e-08]
[1752187199767,6.83904854,163.96,163.95,1e-08]
[1752187199949,0.74,163.96,163.95,1e-08]
[1752187200354,6.83904854,163.96,163.95,1e-08]
[1752187200765,0.06,163.96,163.95,1e-08]
[1752187201055,0.06,163.96,163.95,5.35444662]
[1752187201254,0.06,163.96,163.95,38.03444662]
[1752187201769,0.06,163.96,163.95,44.27602874]
[1752187202071,6.54711931,164.05,163.98,26.0]
[1752187202272,6.81155199,164.04,164.03,5.35444661]
[1752187202583,13.60800786,164.04,163.99,5.35444661]
[1752187202786,5.35444661,164.02,163.98,32.0]
[1752187203098,0.68,164.01,163.98,37.35444661]
[1752187203372,6.77738172,164.01,163.98,32.0]
[1752187203561,0.68,164.0,163.98,32.0]
[1752187204370,6.09738172,164.01,163.98,32.0]
[1752187204571,6.03444661,163.99,163.95,1e-08]
[1752187204772,10.66119971,163.98,163.95,1e-08]
[1752187204997,6.11673469,163.98,163.95,1e-08]
[1752187205183,6.77899988,163.97,163.95,1e-08]
[1752187205701,0.68,163.96,163.95,1e-08]
[1752187206701,6.09899988,163.97,163.95,1e-08]
[1752187206880,6.77899988,163.97,163.95,1e-08]
[1752187207203,6.09870131,163.97,163.95,1e-08]
[1752187207377,0.76228808,163.98,163.95,1e-08]
[1752187207571,4.54950799,163.97,163.95,1e-08]
[1752187207804,4.54950799,163.96,163.95,1e-08]
[1752187208002,12.89515319,163.98,163.95,1e-08]
[1752187208191,4.54991131,163.97,163.95,1e-08]
[1752187209388,12.21515319,163.98,163.95,1e-08]
[1752187209710,16.68674226,163.97,163.95,1e-08]
[1752187209890,4.55338637,163.96,163.95,1e-08]
[1752187213689,10.65243491,163.96,163.95,1e-08]
[1752187214003,11.33243491,163.96,163.95,1e-08]
[1752187214204,5.23338637,163.96,163.95,1e-08]
[1752187214504,4.55338637,163.96,163.95,1e-08]
[1752187215901,4.55338637,163.96,163.95,5.35444662]
[1752187216105,5.23338637,163.96,163.95,1e-08]
[1752187216310,16.68688152,163.96,163.95,1e-08]
[1752187216489,22.57847857,163.96,163.95,1e-08]
[1752187216692,18.0250922,163.96,163.95,1e-08]
[1752187217382,34.80977617,163.96,163.95,1e-08]
[1752187219318,0.06,163.97,163.95,1e-08]
[1752187219987,0.06,163.97,163.96,5.35444661]
[1752187220282,0.06,163.97,163.96,37.99444661]
[1752187220485,0.06,163.97,163.96,44.09349515]
[1752187221615,0.06,163.97,163.96,44.51997986]
[1752187223096,0.06,163.97,163.96,38.73904854]
[1752187223295,0.06,163.97,163.96,44.09349515]
[1752187223691,0.06,163.97,163.96,63.33444661]
[1752187224098,0.06,163.97,163.96,63.98444661]
[1752187224515,0.06,163.97,163.96,70.50997986]
[1752187226609,0.06,163.97,163.96,63.33444661]
[1752187227415,0.06,163.97,163.96,70.08349515]
[1752187228408,0.06,163.97,163.96,31.35444661]
[1752187228716,0.06,163.97,163.96,5.35444661]
[1752187229120,0.06,163.97,163.96,31.96]
[1752187229317,0.06,163.97,163.96,37.31444661]
[1752187229520,0.06,163.97,163.96,31.96]